bitfinex-derivatives/quotes_ETHF0:USTF0_20260112
["timestamp","ask_amount","ask_price","bid_price","bid_amount"]
[1768211438601,4.14641336,3122.3,3121.0,1.23658231]
[1768211438803,0.80331579,3122.2,3121.2,1.23375551]
[1768211438997,3.34309757,3122.3,3121.2,1.23375551]
[1768211438998,0.80331579,3122.1,3121.2,1.23375551]
[1768211439211,3.34309757,3122.7,3121.4,1.23375551]
[1768211439414,0.80482486,3122.6,3121.4,1.23375551]
[1768211439707,0.80482486,3122.5,3121.4,1.23375551]
[1768211439909,0.80482486,3122.4,3121.4,1.23375551]
[1768211440109,0.80482486,3122.3,3121.4,1.23375551]
[1768211440306,3.34309757,3122.7,3121.4,1.23375551]
[1768211440507,0.8082375,3122.6,3121.6,1.23375551]
[1768211440710,0.8082375,3122.5,3121.8,1.23375551]
[1768211440914,3.34309757,3123.1,3122.0,1.23375551]
[1768211441103,1.08305821,3123.0,3121.8,1.23375551]
[1768211441304,0.80819455,3122.9,3121.6,3.68814267]
[1768211441503,0.80819455,3122.8,3121.6,3.68814267]
[1768211441703,0.80819455,3122.7,3121.6,3.68814267]
[1768211441908,0.80819455,3122.6,3121.6,3.68814267]
[1768211442106,3.34309757,3123.1,3121.6,3.68814267]
[1768211442312,0.80824437,3123.0,3121.8,3.68813267]
[1768211442618,0.80824437,3122.9,3121.8,3.68813267]
[1768211442906,0.00304653,3123.2,3121.8,3.68813267]
[1768211443111,0.80818167,3123.1,3121.8,3.68813267]
[1768211443411,0.80818167,3123.0,3121.8,3.68813267]
[1768211443611,0.00304653,3123.2,3121.8,3.68813267]
[1768211443914,0.80814545,3123.1,3121.8,3.68813267]
[1768211444110,0.80814545,3123.0,3121.9,0.16036]
[1768211444306,0.00304653,3123.2,3121.9,3.68812267]
[1768211444511,0.80810607,3123.1,3121.9,3.68812267]
[1768211444806,0.80810607,3123.0,3121.9,3.68812267]
[1768211445002,0.80810607,3122.9,3121.9,3.68812267]
[1768211445206,0.80810607,3122.8,3121.9,3.68812267]
[1768211445406,0.80810607,3122.7,3121.9,3.68812267]
[1768211445613,0.00304653,3123.2,3121.9,3.68812267]
[1768211445814,0.80806773,3123.1,3121.9,3.68812267]
[1768211446014,0.80806773,3123.0,3121.9,3.68812267]
[1768211446314,0.80806773,3122.9,3121.9,3.68812267]
[1768211446514,0.80806773,3122.8,3121.9,3.68812267]
[1768211446713,0.80806773,3122.7,3121.9,3.68812267]
[1768211446916,0.00304653,3123.2,3121.9,3.68812267]
[1768211447116,0.80795051,3123.1,3121.9,3.68812267]
[1768211447309,0.80795051,3123.0,3121.9,3.68812267]
[1768211447508,0.80795051,3122.9,3121.9,3.68812267]
[1768211447710,0.80795051,3122.8,3121.9,3.68812267]
[1768211447911,0.00304653,3123.2,3122.0,0.16036]
[1768211448106,0.80783455,3123.1,3122.0,3.68812267]
[1768211448415,0.80783455,3123.0,3122.1,3.68811267]
[1768211448614,0.80783455,3122.9,3122.1,3.68811267]
[1768211448814,0.00304653,3123.2,3122.1,3.68811267]
[1768211449013,0.80767366,3123.1,3122.1,3.68811267]
[1768211449318,0.80767366,3123.0,3122.1,3.68811267]
[1768211449621,0.80767366,3122.9,3122.1,0.16035]
[1768211449812,0.00304653,3123.2,3122.1,0.16035]
[1768211450013,0.80765562,3123.1,3122.1,0.16035]
[1768211450214,0.80765562,3123.0,3122.1,0.16035]
[1768211450414,0.80765562,3122.9,3122.1,0.16035]
[1768211450615,0.80765562,3122.8,3121.5,0.16038]
[1768211450816,3.3461441,3123.2,3121.6,1.681]
[1768211451017,3.34309757,3123.0,3121.7,0.16037]
[1768211451317,0.80756844,3122.9,3121.7,0.16037]
[1768211451620,0.80756844,3122.8,3121.7,0.16037]
[1768211451921,3.34309757,3123.0,3121.7,0.16037]
[1768211452120,0.80747501,3122.9,3121.7,0.16037]
[1768211452313,0.80747501,3122.8,3121.7,0.16037]
[1768211452514,3.34309757,3123.0,3121.7,0.16037]
[1768211452715,0.80740604,3122.9,3121.7,0.16037]
[1768211453023,0.80740604,3122.8,3121.7,0.16037]
[1768211453223,3.34309757,3123.0,3121.7,0.16037]
[1768211453420,0.8074064,3122.9,3121.7,0.16037]
[1768211453616,0.8074064,3122.8,3121.7,0.16037]
[1768211453822,0.8074064,3122.7,3121.7,0.16037]
[1768211454123,3.34309757,3123.0,3121.7,0.16037]
[1768211454323,0.80736184,3122.9,3121.7,0.16037]
[1768211454524,0.80736184,3122.8,3121.7,0.16037]
[1768211454725,0.80736184,3122.7,3121.7,0.16037]
[1768211455031,3.34309757,3123.0,3121.7,0.16037]
[1768211455723,3.34309757,3122.8,3121.1,0.1604]
[1768211455911,3.34309757,3122.6,3121.2,1.69]
[1768211457722,0.80753188,3122.5,3121.2,1.69]
[1768211457922,0.80753188,3122.4,3121.2,1.69]
[1768211458226,0.80753188,3122.4,3121.2,1.8504]
[1768211462831,0.80753188,3122.4,3121.3,3.68815267]
[1768211463021,3.34309757,3122.9,3121.3,3.68815267]
[1768211463221,0.80789838,3122.8,3121.3,3.68815267]
[1768211463422,0.80789838,3122.7,3121.3,3.68815267]
[1768211463629,0.80789838,3122.6,3121.3,3.68815267]
[1768211463825,0.80789838,3122.5,3121.3,3.68815267]
[1768211464026,0.80789838,3122.4,3121.3,3.68815267]
[1768211464330,3.34309757,3122.7,3121.3,3.68815267]
[1768211464530,0.80807938,3122.6,3121.3,3.68815267]
[1768211464730,0.80807938,3122.5,3121.3,3.68815267]
[1768211464932,0.80807938,3122.4,3121.3,3.68815267]
[1768211465131,3.34309757,3122.7,3121.3,3.68815267]
[1768211465428,0.80807911,3122.6,3121.3,3.68815267]
[1768211465628,0.80807911,3122.5,3121.3,3.68815267]
[1768211465930,0.80807911,3122.4,3121.3,3.68815267]
[1768211466229,3.34309757,3122.7,3121.3,3.68815267]
[1768211466426,0.80832092,3122.6,3121.3,3.68815267]
[1768211466644,0.80832092,3122.5,3121.4,3.6594981]
[1768211466829,0.80832092,3122.4,3121.4,3.6594981]
[1768211467030,3.56282463,3123.1,3121.4,3.6594981]
[1768211467327,4.48570249,3123.0,3121.4,3.6594981]
[1768211467531,0.80832911,3122.9,3121.4,3.6594981]
[1768211468730,4.21085374,3122.9,3121.4,3.6594981]
[1768211468924,0.80832911,3122.8,3121.4,3.6594981]
[1768211472531,4.37068921,3122.8,3121.4,3.6594981]
[1768211472831,4.37068921,3122.7,3121.4,0.16039]
[1768211473032,3.5623601,3122.5,3121.0,3.30531229]
[1768211473229,4.37068921,3122.4,3121.0,3.30531229]
[1768211473433,4.37068921,3122.3,3121.0,3.30531229]
[1768211473632,0.80832911,3122.2,3121.0,3.30531229]
[1768211475834,4.37068921,3122.2,3121.0,0.0028268]
[1768211476035,3.5623601,3122.0,3121.0,0.0028268]
[1768211476218,0.80832911,3121.9,3121.0,0.0028268]
[1768211482233,3.5623601,3122.4,3121.0,0.0028268]
[1768211482234,3.5623601,3122.4,3121.0,0.1632368]
[1768211482728,0.8095641,3122.3,3121.1,0.1604]
[1768211482930,0.8095641,3122.2,3121.1,3.46288549]
[1768211483123,3.5623601,3122.8,3121.3,3.30248549]
[1768211483329,0.80951995,3122.7,3121.3,3.46287549]
[1768211483528,0.80951995,3122.6,3121.3,3.46287549]
[1768211483729,0.80951995,3122.5,3121.3,3.46287549]
[1768211483935,0.80951995,3122.4,3121.3,3.46287549]
[1768211484124,3.5623601,3122.8,3121.3,3.46287549]
[1768211484327,0.80967658,3122.7,3121.3,3.46287549]
[1768211484629,0.80967658,3122.6,3121.5,3.46286549]
[1768211484830,3.56540663,3123.2,3121.7,0.16037]
[1768211485036,0.80977587,3123.1,3121.7,0.16037]
[1768211485230,0.80977587,3123.0,3121.7,0.16037]
[1768211485530,0.80977587,3122.9,3121.7,0.16037]
[1768211485729,0.80977587,3122.8,3121.7,0.16037]
[1768211485935,0.80977587,3122.7,3121.7,0.16037]
[1768211486137,3.56540663,3123.2,3121.7,3.46285549]
[1768211486436,1.08498819,3123.1,3121.7,3.46285549]
[1768211486637,0.80984125,3123.0,3121.7,3.46285549]
[1768211486939,0.80984125,3122.9,3121.7,3.46285549]
[1768211487134,0.80984125,3122.8,3121.7,3.46285549]
[1768211487332,0.80984125,3122.7,3121.7,3.46285549]
[1768211487535,3.56540663,3123.2,3121.7,3.46285549]
[1768211487735,1.08464979,3123.1,3121.7,3.46285549]
[1768211487936,0.80958835,3123.0,3121.7,3.46285549]
[1768211488128,0.80958835,3122.9,3121.7,3.46285549]
[1768211488329,0.80958835,3122.8,3121.7,0.16037]
[1768211488531,0.80958835,3122.7,3121.7,0.16037]
[1768211488732,3.5623601,3123.0,3121.7,0.16037]
[1768211488929,0.80946281,3122.9,3121.7,0.16037]
[1768211489130,0.80946281,3122.8,3121.7,0.16037]
[1768211489439,3.5623601,3123.0,3121.7,0.16037]
[1768211489735,0.8093548,3122.9,3121.7,0.16037]
[1768211489935,0.8093548,3122.8,3121.7,0.16037]
[1768211490123,3.5623601,3123.0,3121.7,0.16037]
[1768211490324,0.80935449,3122.9,3121.7,0.16037]
[1768211490530,0.80935449,3122.8,3121.7,0.16037]
[1768211490731,3.5623601,3123.0,3121.7,0.16037]
[1768211490938,0.80929798,3122.9,3121.7,0.16037]
[1768211491236,0.80929798,3122.8,3121.7,0.16037]
[1768211491436,3.5623601,3123.0,3121.7,0.16037]
[1768211491638,0.80921175,3122.9,3121.7,0.16037]
[1768211491839,0.80921175,3122.8,3121.7,0.16037]
[1768211492032,3.5623601,3123.0,3121.7,0.16037]
[1768211492233,0.80921175,3122.9,3121.7,0.16037]
[1768211492536,0.80921175,3122.8,3121.7,0.16037]
[1768211492736,3.5623601,3123.0,3121.7,0.16037]
[1768211493037,0.8091351,3122.9,3121.7,0.16037]
[1768211493336,0.8091351,3122.8,3121.7,0.16037]
[1768211493544,3.5623601,3123.0,3121.7,0.16037]
[1768211493745,0.80906626,3122.9,3121.8,0.16037]
[1768211493932,0.80906626,3122.8,3121.9,0.16036]
[1768211494130,0.00304653,3123.2,3122.0,1.3935388]
[1768211494331,0.80904109,3123.1,3122.1,0.16035]
[1768211494536,0.00304653,3123.2,3122.4,1.3935188]
[1768211494737,3.63531576,3123.8,3122.4,1.3935188]
[1768211495643,3.63906366,3123.8,3122.4,1.3935188]
[1768211496640,3.63906366,3123.8,3122.4,0.16034]
[1768211501448,3.63906366,3123.8,3122.7,1.23237621]
[1768211504350,3.63906366,3123.8,3122.6,1.23237621]
[1768211504851,3.63531576,3123.7,3122.6,1.23237621]
[1768211505951,3.63531576,3123.7,3122.4,0.16034]
[1768211506152,3.63531576,3123.7,3122.5,1.23237621]
[1768211506447,3.63531576,3123.5,3122.4,0.16034]
[1768211508049,0.0037479,3123.8,3123.4,1.23237621]
[1768211508244,2.3040107,3124.6,3123.7,1.23237621]
[1768211508245,3.63531576,3124.6,3123.7,1.23237621]
[1768211508544,3.63531576,3124.4,3123.5,1.23237621]
[1768211509147,3.63879592,3124.4,3123.5,1.23569817]
[1768211510751,3.63879592,3124.4,3123.5,0.00332196]
[1768211513351,4.86769197,3123.9,3122.3,2.29829833]
[1768211513648,3.63531576,3123.8,3122.6,1.23237621]
[1768211514454,3.63531576,3123.8,3122.6,1.23466581]
[1768211517859,3.63531576,3123.6,3122.6,0.0022896]
[1768211524864,3.59497862,3123.4,3122.6,0.0022896]
[1768211530369,4.82735483,3122.8,3121.6,0.16038]
[1768211530569,3.59497862,3122.8,3121.6,3.08475621]
[1768211530770,3.59497862,3122.8,3121.8,1.23237621]
[1768211531278,3.59497862,3122.8,3121.8,1.23543516]
[1768211531472,3.59497862,3122.8,3122.0,1.23237621]
[1768211531676,3.48901692,3123.2,3122.2,1.23237621]
[1768211531980,0.8050437,3123.1,3122.2,1.23237621]
[1768211532178,0.8050437,3123.0,3122.2,1.23237621]
[1768211532371,3.48901692,3123.2,3122.2,1.23237621]
[1768211532567,0.80484495,3123.1,3122.2,1.23237621]
[1768211532767,0.80484495,3123.0,3122.2,1.23237621]
[1768211533064,3.48901692,3123.2,3122.2,1.23237621]
[1768211533267,0.80484495,3123.1,3122.2,1.23237621]
[1768211533481,0.80484495,3123.0,3122.2,1.23237621]
[1768211533680,3.48901692,3123.2,3122.2,1.23237621]
[1768211533869,0.80466788,3123.1,3122.2,1.23237621]
[1768211534069,0.80466788,3123.0,3122.2,1.23237621]
[1768211534270,3.48901692,3123.2,3122.2,1.23237621]
[1768211534476,0.80450592,3123.1,3122.2,1.23237621]
[1768211534677,3.48901692,3123.2,3122.0,1.23237621]
[1768211534877,4.29352284,3123.1,3122.0,1.23237621]
[1768211535073,0.80450592,3123.0,3122.0,1.23237621]
[1768211535274,3.48901692,3123.1,3122.0,1.23237621]
[1768211537675,0.16028,3123.6,3122.7,1.23237621]
[1768211537676,3.48901692,3123.6,3122.7,1.23237621]
[1768211537877,0.80404731,3123.5,3122.7,1.23237621]
[1768211538076,3.48901692,3123.6,3122.7,1.23237621]
[1768211538385,0.80399795,3123.5,3122.7,1.23237621]
[1768211538583,3.48901692,3123.6,3122.7,1.23237621]
[1768211538791,0.80408875,3123.5,3122.7,1.23237621]
[1768211539079,3.48901692,3123.6,3122.7,1.23237621]
[1768211539276,0.80408875,3123.5,3122.7,1.23237621]
[1768211539483,3.48901692,3123.6,3122.7,1.23237621]
[1768211539778,0.80425456,3123.5,3122.7,1.23237621]
[1768211539978,3.48901692,3123.6,3122.7,1.23237621]
[1768211540179,0.80425454,3123.5,3122.7,1.23237621]
[1768211540380,3.48901692,3123.6,3122.7,1.23237621]
[1768211540676,0.80443875,3123.5,3122.7,1.23237621]
[1768211540874,3.48901692,3123.6,3122.7,1.23237621]
[1768211541069,0.80443875,3123.5,3122.7,1.23237621]
[1768211541272,0.80448564,3123.4,3122.7,1.23237621]
[1768211541475,3.48901692,3123.6,3122.7,1.23237621]
[1768211541679,0.80465473,3123.5,3122.7,1.23237621]
[1768211541879,0.80465473,3123.4,3122.7,1.23237621]
[1768211542081,3.48901692,3123.6,3122.7,1.23237621]
[1768211542283,0.80463029,3123.5,3122.7,1.23237621]
[1768211542582,0.80463029,3123.4,3122.7,1.23237621]
[1768211542777,3.48901692,3123.6,3122.7,1.23237621]
[1768211542982,0.80488814,3123.5,3122.7,1.23237621]
[1768211543190,0.80488814,3123.4,3122.3,0.16034]
[1768211543486,3.48901692,3124.3,3123.3,1.23237621]
[1768211543689,3.48901692,3124.1,3123.1,1.23237621]
[1768211543886,0.80512773,3124.0,3123.1,1.23237621]
[1768211544188,0.80512773,3123.9,3123.1,1.23237621]
[1768211544377,0.80512773,3123.8,3123.1,1.23237621]
[1768211544688,3.48901692,3124.1,3123.1,1.23237621]
[1768211544881,0.80512803,3124.0,3123.1,1.23237621]
[1768211545082,0.80512803,3123.9,3123.1,1.23237621]
[1768211545385,1.39260621,3124.5,3122.4,1.69]
[1768211545386,0.80512803,3123.8,3123.5,1.23237621]
[1768211545688,0.00348016,3124.4,3123.5,1.23237621]
[1768211547783,0.00348016,3124.4,3123.6,1.23237621]
[1768211550488,0.00348016,3124.4,3123.8,1.23237621]
[1768211550889,0.00348016,3124.4,3123.3,3.39151362]
[1768211551086,0.00348016,3124.4,3123.7,1.23237621]
[1768211551689,0.00348016,3124.4,3123.3,3.39151362]
[1768211551882,0.00348016,3124.4,3123.5,1.23237621]
[1768211552691,3.48901692,3124.0,3122.9,1.23237621]
[1768211552892,3.48901692,3124.0,3123.1,1.23237621]
[1768211553092,1.23237621,3124.3,3123.1,1.23237621]
[1768211553287,4.72139313,3124.3,3123.1,1.23237621]
[1768211555684,3.29988743,3123.8,3122.7,0.16032]
[1768211556094,3.29988743,3123.8,3122.8,1.23237621]
[1768211556289,3.29988743,3123.8,3122.7,1.39269621]
[1768211557095,3.29988743,3123.8,3122.7,1.23237621]
[1768211559692,3.29988743,3123.8,3122.6,1.23237621]
[1768211559996,4.53226364,3123.3,3122.0,1.23237621]
[1768211560387,4.53226364,3123.3,3121.9,1.686]
[1768211560594,4.53226364,3123.1,3121.8,1.39580516]
[1768211560795,4.53226364,3122.7,3121.8,0.00305895]
[1768211560995,3.29988743,3122.6,3121.8,0.00305895]
[1768211562496,0.16029,3123.3,3120.6,0.16043]
[1768211562497,3.29988743,3122.4,3120.6,0.16043]
[1768211562690,3.29988743,3122.2,3120.7,1.686]
[1768211563091,3.29988743,3122.0,3119.9,0.16046]
[1768211563292,3.29988743,3121.8,3119.9,0.16046]
[1768211563600,3.29988743,3121.6,3119.9,0.1634663]
[1768211564292,3.29988743,3121.4,3119.9,0.1634663]
[1768211564508,3.29988743,3121.4,3119.9,0.0030063]
[1768211564895,3.29988743,3121.2,3119.9,0.0030063]
[1768211568402,3.29988743,3121.2,3119.2,1.687]
[1768211568707,0.00227223,3121.8,3118.8,3.59229658]
[1768211568708,3.29988743,3121.0,3118.8,3.59229658]
[1768211569006,3.29988743,3121.0,3118.7,3.207]
[1768211569007,3.29988743,3120.8,3118.7,3.207]
[1768211569197,3.29988743,3120.6,3118.7,3.207]
[1768211569398,3.29988743,3120.6,3118.7,3.20978267]
[1768211570110,3.29988743,3120.4,3118.7,0.00278267]
[1768211587227,3.51952601,3120.2,3118.7,0.00278267]
[1768211589321,3.51952601,3120.0,3118.7,0.00278267]
[1768211590224,4.31980459,3119.9,3118.7,0.00278267]
[1768211590423,3.51952601,3119.9,3118.7,0.00278267]
[1768211591226,0.80155084,3119.8,3118.7,0.00278267]
[1768211591427,3.51952601,3119.9,3118.7,0.00278267]
[1768211591625,0.80155009,3119.8,3118.7,0.00278267]
[1768211591825,3.51952601,3119.9,3118.7,0.00278267]
[1768211592123,0.80156899,3119.8,3118.7,0.00278267]
[1768211592324,0.80156899,3119.7,3118.7,0.00278267]
[1768211592629,0.80156899,3119.6,3118.7,0.00278267]
[1768211592818,0.00271919,3119.6,3118.7,0.00278267]
[1768211594226,0.8034975,3119.5,3118.7,0.00278267]
[1768211594430,0.00271919,3119.6,3118.7,0.00278267]
[1768211594725,0.80405037,3119.5,3118.7,0.00278267]
[1768211594911,0.80405036,3119.4,3118.7,0.00278267]
[1768211595111,0.00271919,3119.6,3118.7,0.00278267]
[1768211595313,0.80448342,3119.5,3118.7,0.00278267]
[1768211595516,0.80448342,3119.4,3118.7,0.00278267]
[1768211595716,0.80448342,3119.3,3118.7,0.00278267]
[1768211595913,0.00271919,3119.6,3118.7,0.00278267]
[1768211596118,0.80449897,3119.5,3118.7,0.00278267]
[1768211596320,0.80449897,3119.4,3118.7,0.00278267]
[1768211596517,0.80449897,3119.3,3118.7,0.00278267]
[1768211596726,0.00271919,3119.6,3118.7,0.00278267]
[1768211597028,0.80488878,3119.5,3118.7,0.00278267]
[1768211597324,0.80488878,3119.4,3118.7,0.00278267]
[1768211597527,4.27139875,3119.3,3117.9,8.41952712]
[1768211597728,0.80488878,3119.2,3117.9,5.05457]
[1768211598128,3.46650997,3119.3,3117.9,5.05457]
[1768211598129,0.80527607,3119.1,3117.9,5.05457]
[1768211598331,0.80527607,3119.0,3117.9,5.05457]
[1768211598632,3.46650997,3119.3,3117.9,5.05779999]
[1768211598633,0.80527607,3118.9,3117.9,5.05779999]
[1768211598825,0.80527607,3118.8,3117.9,5.05779999]
[1768211599026,0.80527607,3118.7,3117.9,5.05779999]
[1768211599222,0.80527607,3118.6,3117.9,0.16379999]
[1768211599425,3.46650997,3119.1,3117.9,0.16379999]
[1768211599620,0.80531756,3119.0,3117.9,0.16379999]
[1768211599825,0.80531756,3118.9,3117.9,0.16379999]
[1768211600133,2.3040107,3119.4,3117.9,0.16379999]
[1768211600134,0.80531756,3118.8,3117.9,0.16379999]
[1768211600329,2.3040107,3119.5,3118.3,0.16054]
[1768211600529,0.00271919,3119.6,3118.3,0.16054]
[1768211600826,0.00271919,3119.6,3118.2,5.05295712]
[1768211601031,0.00271919,3119.6,3118.6,0.16053]
[1768211601428,0.00271919,3119.6,3118.3,3.36495712]
[1768211601634,0.00271919,3119.6,3118.8,0.16052]
[1768211602929,0.00271919,3119.6,3118.8,3.52547712]
[1768211603136,2.3040107,3120.6,3119.1,0.16051]
[1768211603331,3.46650997,3120.5,3119.1,0.16051]
[1768211604030,3.46895639,3120.5,3119.1,0.16051]
[1768211604230,3.46895639,3120.5,3118.3,35.59826534]
[1768211604231,3.46895639,3120.5,3118.4,3.52549712]
[1768211604533,5.77052067,3120.4,3118.5,0.16054]
[1768211604736,3.46650997,3120.3,3118.5,0.16054]
[1768211605334,3.46650997,3120.3,3118.6,0.16053]
[1768211605828,3.46650997,3120.3,3118.7,0.16053]
[1768211611133,3.46650997,3120.2,3118.7,0.16053]
[1768211611743,3.46650997,3120.1,3118.7,0.16053]
[1768211612341,3.46650997,3119.9,3118.7,0.16053]
[1768211612542,4.26767213,3119.8,3118.7,0.16053]
[1768211612740,0.80116216,3119.7,3118.7,0.16053]
[1768211613036,4.26767213,3119.7,3118.2,4.898]
[1768211613344,3.46650997,3119.5,3118.2,4.898]
[1768211613542,3.46650997,3119.3,3118.2,4.898]
[1768211613737,0.80116216,3119.2,3118.2,4.898]
[1768211614035,0.80116216,3119.1,3118.2,4.898]
[1768211614234,3.46650997,3119.3,3118.2,4.898]
[1768211614434,0.80097788,3119.2,3118.2,1.688]
[1768211614643,0.80097788,3119.1,3118.2,1.688]
[1768211614942,3.46650997,3119.3,3118.2,1.688]
[1768211615141,0.80097675,3119.2,3118.2,1.688]
[1768211615343,0.80090869,3119.1,3118.2,1.688]
[1768211615643,3.46650997,3119.3,3118.2,1.688]
[1768211615844,0.80091051,3119.2,3118.2,1.688]
[1768211616135,0.80091051,3119.1,3118.2,1.688]
[1768211616341,3.46650997,3119.3,3118.2,1.688]
[1768211616542,0.80082903,3119.2,3118.2,1.688]
[1768211616740,1.444,3119.9,3118.2,1.84855]
[1768211616943,4.38860577,3119.8,3118.3,0.16055]
[1768211617146,0.80085222,3119.7,3118.3,0.16055]
[1768211617443,0.80085222,3119.6,3118.3,0.16055]
[1768211617635,0.80085222,3119.5,3118.3,0.16055]
[1768211617836,0.80085222,3119.4,3118.3,0.16055]
[1768211618037,0.80085222,3119.3,3118.3,0.16055]
[1768211618246,3.58775355,3119.8,3118.3,0.16055]
[1768211618437,4.38849411,3119.7,3118.3,0.16055]
[1768211618637,0.80074056,3119.6,3118.3,0.16055]
[1768211618838,0.80074056,3119.5,3118.3,0.16055]
[1768211619039,0.80074056,3119.4,3118.3,0.16055]
[1768211619240,3.58775355,3119.7,3118.3,0.16055]
[1768211619440,4.38843429,3119.6,3118.3,0.16055]
[1768211619640,4.38843429,3119.5,3118.3,0.16055]
[1768211619843,0.80068074,3119.4,3118.3,0.16055]
[1768211620035,3.58775355,3119.5,3118.3,0.16055]
[1768211620234,0.79986047,3119.4,3118.3,0.16055]
[1768211620444,3.58775355,3119.5,3118.3,0.16055]
[1768211620640,4.38758684,3119.4,3118.3,0.16055]
[1768211620838,3.58775355,3119.4,3118.3,0.16055]
[1768211628962,3.58775355,3119.2,3118.2,1.688]
[1768211629254,3.58775355,3119.0,3117.9,0.16379999]
[1768211630350,3.58775355,3119.0,3117.9,0.00322999]
[1768211630657,3.58775355,3118.8,3117.9,0.00322999]
[1768211634155,3.58775355,3118.8,3117.5,0.16058]
[1768211634354,2.13794524,3119.3,3117.5,0.16058]
[1768211634355,4.3870145,3118.7,3117.5,0.16058]
[1768211634553,3.58775355,3118.7,3117.5,0.16058]
[1768211635057,2.39553325,3119.3,3117.5,0.16058]
[1768211635058,4.38702271,3118.6,3117.5,0.16058]
[1768211635247,3.58775355,3118.6,3117.5,0.16383522]
[1768211638759,3.58775355,3118.4,3117.5,0.00325522]
[1768211639653,3.58775355,3118.2,3116.4,2.45890534]
[1768211639958,3.58775355,3118.0,3116.5,0.16064]
[1768211640154,0.79949113,3117.9,3116.5,0.16064]
[1768211640458,3.58775355,3117.9,3116.5,0.16064]
[1768211640658,3.5912256,3117.9,3116.8,0.16062]
[1768211640956,0.00347205,3117.9,3116.8,0.16062]
[1768211641158,0.00347205,3117.9,3116.8,3.45687938]
[1768211641552,3.58775355,3118.9,3117.2,0.1606]
[1768211641750,4.73948,3118.8,3117.3,0.1606]
[1768211641952,1.15172645,3118.7,3117.3,0.1606]
[1768211642151,2.3040107,3119.5,3117.6,0.16058]
[1768211642356,1.15189315,3119.4,3117.8,3.45687938]
[1768211642654,0.00345648,3119.4,3118.3,3.61742938]
[1768211642859,0.00345648,3119.4,3118.4,1.707]
[1768211643756,0.00345648,3119.4,3118.4,5.32441938]
[1768211645557,3.58775355,3120.3,3118.4,5.32441938]
[1768211645861,1.14155482,3120.2,3118.7,0.16053]
[1768211646059,0.79971138,3120.1,3118.7,0.16053]
[1768211646259,0.79971138,3120.0,3118.7,0.16053]
[1768211646565,3.58406922,3120.4,3118.7,0.16053]
[1768211646763,0.00246508,3120.0,3118.7,0.16354272]
[1768211648159,3.5865343,3120.0,3118.8,1.709]
[1768211648453,3.5865343,3120.0,3118.8,1.71]
[1768211648851,3.58406922,3119.8,3118.7,0.00301272]
[1768211649157,3.58406922,3119.6,3118.7,0.00301272]
[1768211656481,0.00246508,3120.0,3118.7,0.00301272]
[1768211656673,0.80293881,3119.9,3118.7,0.00301272]
[1768211656869,0.00246508,3120.0,3118.7,0.00301272]
[1768211656870,0.80293881,3119.8,3118.7,0.00301272]
[1768211657074,0.00246508,3120.0,3118.7,0.00301272]
[1768211657278,0.8030977,3119.9,3118.7,0.00301272]
[1768211657580,0.8030977,3119.8,3118.7,0.00301272]
[1768211657784,0.00246508,3120.0,3118.7,0.00301272]
[1768211657975,0.80298464,3119.9,3118.7,0.00301272]
[1768211658175,0.80298464,3119.8,3118.7,0.00301272]
[1768211658383,0.00246508,3120.0,3118.7,0.00301272]
[1768211658584,0.80277222,3119.9,3118.7,0.00301272]
[1768211658785,0.00246508,3120.0,3118.7,0.00301272]
[1768211658985,0.80278268,3119.9,3118.7,0.00301272]
[1768211659284,0.00246508,3120.0,3118.7,0.00301272]
[1768211659487,0.80273203,3119.9,3118.7,0.00301272]
[1768211659674,0.00246508,3120.0,3118.7,0.00301272]
[1768211660088,0.00246508,3120.0,3118.7,0.16354272]
[1768211663086,3.47188595,3120.0,3118.7,0.16354272]
[1768211665188,3.47188595,3120.0,3118.9,0.16051]
[1768211669196,0.80348837,3119.9,3118.9,0.16051]
[1768211669496,3.47188595,3120.0,3118.9,0.16051]
[1768211669689,0.8035093,3119.9,3118.9,0.16051]
[1768211669890,3.47188595,3120.0,3118.9,0.16051]
[1768211670089,0.80350668,3119.9,3118.9,0.16051]
[1768211670296,3.47188595,3120.0,3118.9,0.16051]
[1768211670499,0.80354944,3119.9,3118.9,0.16051]
[1768211670699,0.00246508,3120.0,3118.9,0.16051]
[1768211670995,0.80461239,3119.9,3118.9,0.16051]
[1768211671195,0.00246508,3120.0,3118.9,0.16051]
[1768211671394,1.14668732,3119.9,3118.9,0.16051]
[1768211671695,0.00246508,3120.0,3118.9,0.16051]
[1768211671883,1.14682257,3119.9,3118.9,0.16051]
[1768211672085,0.80557029,3119.8,3118.9,0.16051]
[1768211672386,0.00246508,3120.0,3118.9,0.16051]
[1768211672594,1.1481319,3119.9,3118.9,0.16051]
[1768211672896,1.1481319,3119.8,3118.9,0.16051]
[1768211673096,0.00246508,3120.0,3118.9,0.16051]
[1768211673394,1.14794529,3119.9,3118.9,0.16051]
[1768211673596,1.14794529,3119.8,3118.9,0.16051]
[1768211673792,0.00246508,3120.0,3118.9,0.16051]
[1768211673994,1.14793591,3119.9,3118.9,0.16051]
[1768211674193,1.14793591,3119.8,3118.9,0.16051]
[1768211674392,0.00246508,3120.0,3118.9,0.16051]
[1768211674592,1.1478934,3119.9,3118.9,0.16051]
[1768211674792,0.80548398,3119.8,3118.9,0.16051]
[1768211674991,0.00246508,3120.0,3118.9,0.16051]
[1768211675294,1.14791097,3119.9,3119.2,1.23511618]
[1768211675498,0.80549623,3119.8,3119.2,1.23511618]
[1768211675694,5.65863464,3120.8,3119.7,1.23511618]
[1768211675999,1.14797585,3120.7,3119.7,1.23511618]
[1768211676203,1.14797585,3120.6,3119.7,1.23511618]
[1768211676499,1.14797585,3120.5,3119.7,1.23511618]
[1768211676700,1.14797585,3120.4,3119.7,1.23511618]
[1768211677006,0.80553691,3120.3,3119.7,1.23511618]
[1768211677192,0.80553691,3120.2,3119.7,1.23511618]
[1768211677388,0.00334524,3120.5,3119.3,0.1605]
[1768211677591,0.80516185,3120.4,3119.3,0.1605]
[1768211677792,0.80516185,3120.3,3119.3,0.1605]
[1768211677986,0.80516185,3120.2,3119.3,0.1605]
[1768211678190,0.00334524,3120.5,3119.3,0.1605]
[1768211678491,0.00334524,3120.5,3119.6,0.16048]
[1768211679401,0.00334524,3120.5,3119.6,1.725]
[1768211679692,0.80487494,3120.4,3119.4,1.725]
[1768211679894,3.35796918,3120.5,3119.4,1.725]
[1768211680096,0.80426356,3120.4,3119.4,1.725]
[1768211680291,3.35796918,3120.5,3119.1,0.16051]
[1768211680599,4.15880217,3120.4,3119.1,0.16051]
[1768211680798,0.80417823,3120.3,3119.2,1.726]
[1768211681802,3.35462394,3120.4,3119.2,1.726]
[1768211683194,0.80435363,3120.3,3119.2,1.726]
[1768211683402,3.35462394,3120.4,3119.2,1.726]
[1768211683593,0.80435483,3120.3,3119.2,1.726]
[1768211683793,3.35462394,3120.4,3119.2,1.726]